Cogmind - Beta 17 @@@ ROGUE MODE // 2026.07.07 @ 19:00:49 Player: Lord Draconis Result: Core melted Performance ------------- Evolutions (4) 2000 Regions Visited (11) 2200 Robots Destroyed (208) 1040 Value Destroyed (6499) 6499 Prototype IDs (11) 220 Alien Tech Used (0) 0 Bonus (1157) 1157 TOTAL SCORE: 13116 Bonus ------- High Alert Combat Kills 48 Follower Combat Kills 832 Met Data Miner 300 Friendly Fire -23 Cogmind --------- Core Integrity 0/850 Matter 300/300 Energy 199/290 System Corruption 16% Temperature Critical (885) Movement Treading (230) Ox1 Location -6/Cetus Parts ------- > --- POWER (1) -------- Improved Deuterium Engine > --- PROPULSION (5) --- Light Treads Light Treads Improved Treads Improved Treads Improved Treads > --- UTILITY (5) ------ Huge Storage Unit Advanced Targeting Computer Target Analyzer Improved Medium Armor Plating Layered Medium Armor Plating > --- WEAPON (4) ------- Heavy Laser Coil Gun Heavy Machine Gun Heavy Machine Gun > --- INVENTORY (25) --- Improved Deuterium Engine Light Fission Core Improved Treads Compact Wheel Advanced Heat Sink Huge Storage Unit Compact Matter Pod (150) Matter Compressor (250) Improved Sensor Array Advanced Terrain Scanner Improved Salvage Targeting Computer Advanced Targeting Computer Kinecellerator High-powered Tractor Beam Advanced Drone Bay (2/2) Phase Cannon Advanced EMP Blaster Rocket Launcher Rocket Launcher Plasma Cutter Great Axe Peak State ------------ > --- POWER ------------ Deuterium Engine > --- PROPULSION ------- Light Treads Light Treads Improved Medium Treads Improved Medium Treads Improved Medium Treads > --- UTILITY ---------- Improved Heat Sink Huge Storage Unit Advanced Targeting Computer Target Analyzer Layered Medium Armor Plating > --- WEAPON ----------- Pulse Rifle Thermic Laser Flak Gun Coil Gun > --- INVENTORY -------- Improved Ion Engine Light Nuclear Core Light Treads Light Treads Armored Wheel Improved Heat Sink Huge Storage Unit Compact Matter Pod Improved Sensor Array Improved Terrain Scanner Improved Salvage Targeting Computer Advanced Targeting Computer Kinecellerator Makeshift Light Armor Plating Reactive Plating Gatling Laser Phase Cannon Heavy Assault Rifle Autogun Minigun Advanced EMP Blaster Rocket Launcher Rocket Launcher Plasma Cutter Great Axe [Rating: 59] Favorites ----------- Power Ion Engine Engine Ion Engine Power Core Light Nuclear Core Propulsion Light Treads Treads Light Treads Leg Aluminum Leg Wheel Wheel Utility Improved Heat Sink Device Improved Heat Sink Storage Huge Storage Unit Processor Advanced Targeting Computer Protection Improved Light Armor Plating Weapon Heavy Assault Rifle Energy Gun Gatling Laser Energy Cannon Phase Cannon Ballistic Gun Heavy Assault Rifle Ballistic Cannon Light Cannon Launcher Rocket Launcher Special Weapon Mining Laser Build | -11 -10 -10 -9 -8 -7 -7 -7 -6 -6 -6 -6 ------- Run | Yrd Mat Min Mat Mat Fac Low Dat Pro Fac Ext Cet Slots Evolved 8 | . . . 2 2 2 . . . 2 . . Power . | . . . . . . . . . . . . Propulsion 3 | . . . . 1 1 . . . 1 . . Utility 3 | . . . . 1 1 . . . 1 . . Weapon 2 | . . . 2 . . . . . . . . Parts Attached 147 | 6 9 7 32 23 8 3 . 6 26 25 2 Power 10 | 1 . 1 2 2 1 . . . 2 1 . Engine 7 | 1 . . 2 1 1 . . . 1 1 . Core 3 | . . 1 . 1 . . . . 1 . . Reactor . | . . . . . . . . . . . . Propulsion 52 | 2 2 2 10 8 2 1 . 2 12 10 1 Treads 44 | 2 2 . 10 8 2 1 . 2 7 9 1 Leg 3 | . . 1 . . . . . . 2 . . Wheel 5 | . . 1 . . . . . . 3 1 . Hover . | . . . . . . . . . . . . Flight . | . . . . . . . . . . . . Utility 26 | 1 3 2 2 6 1 1 . 1 5 4 . Device 9 | . . 1 2 2 . 1 . 1 2 . . Storage 4 | 1 2 . . 1 . . . . . . . Processor 5 | . 1 . . 3 . . . . 1 . . Hackware . | . . . . . . . . . . . . Protection 8 | . . 1 . . 1 . . . 2 4 . Artifact . | . . . . . . . . . . . . Weapon 59 | 2 4 2 18 7 4 1 . 3 7 10 1 Energy Gun 23 | 1 2 . 8 2 1 1 . 1 2 5 . Energy Cannon 1 | . . . . . . . . 1 . . . Ballistic Gun 29 | 1 2 . 10 4 3 . . . 4 4 1 Ballistic Cannon 3 | . . 1 . . . . . . 1 1 . Launcher 2 | . . . . 1 . . . 1 . . . Special Weapon 1 | . . 1 . . . . . . . . . Impact Weapon . | . . . . . . . . . . . . Slashing Weapon . | . . . . . . . . . . . . Piercing Weapon . | . . . . . . . . . . . . Special Melee Weapon . | . . . . . . . . . . . . Unidentified Prototypes 2 | . . . . 2 . . . . . . . Corrupted Parts 1 | . . . . . . . . . . 1 . System Corruption 9 | . . . . . . . . . . 9 . Parts Lost 37 | . 1 7 1 . . . . 3 20 2 3 Power 6 | . . 1 1 . . . . . 3 1 . Propulsion 16 | . . 4 . . . . . 2 8 . 2 Utility 4 | . . 1 . . . . . . 2 1 . Weapon 11 | . 1 1 . . . . . 1 7 . 1 Highest Loss Streak 11 | . 1 4 1 . . . . 2 11 2 3 To Critical Strikes 2 | . . . . . . . . . 1 . 1 Average Backups 20 | . 11 18 19 24 24 25 25 23 22 23 24 Power 1 | . 1 1 1 2 2 2 2 2 2 2 2 Propulsion 3 | . 2 1 2 5 5 5 5 3 2 2 4 Utility 8 | . 3 7 8 7 7 9 10 10 10 11 11 Weapon 6 | . 3 7 6 8 9 7 7 6 6 5 6 Tool/Special . | . . . . . . . . . . . . Unused Backups 53 | . 4 3 7 8 4 2 . . 4 6 15 Power 8 | . 2 . . . 1 . . . . 3 2 Propulsion 4 | . . . 1 1 . . . . . 1 1 Utility 21 | . 1 2 3 2 1 1 . . . 2 9 Weapon 19 | . 1 1 3 5 2 1 . . 4 . 2 Tool/Special 1 | . . . . . . . . . . . 1 Average Slot Usage (%) 98 | . 95 98 99 99 99 100 72 99 94 97 99 Engine 7 | . 14 13 7 3 7 7 7 7 5 5 6 Core 1 | . . . 3 5 . . . . . . . Treads 25 | . 27 26 19 26 30 30 30 29 20 29 33 Wheel 1 | . . . 1 . . . . . 8 2 . Device 7 | . . . 11 9 7 14 15 15 3 . . Storage 9 | . 14 14 11 9 7 7 7 7 6 6 6 Processor 7 | . 10 13 . 9 7 7 7 7 12 13 13 Protection 2 | . . . . . 6 . . . 8 12 13 Energy Gun 10 | . 10 . 16 9 7 7 . 12 10 9 12 Ballistic Gun 20 | . 17 14 27 26 23 23 2 16 10 10 13 Ballistic Cannon 1 | . . 13 . . . . . . . 1 . Peak Build Rating 59 | 6 10 13 19 34 42 44 44 44 59 54 54 Average Rating 29 | 5 8 9 17 31 40 42 30 41 47 50 53 On Entrance 29 | . 6 10 13 18 34 42 44 44 42 46 54 Avg Prop Armor Cover (%) 9 | . . 8 7 . . . . . 8 14 . Naked Turns . | . . . . . . . . . . . . Heaviest Build 124 | 13 47 50 58 103 117 117 107 110 124 124 123 Greatest Support 130 | 40 40 40 40 62 82 90 90 90 130 103 103 Greatest Overweight (x) 11 | . 1 3 3 1 1 1 1 1 11 10 1 Average Overweight (x) 1 | . . 1 1 1 1 1 1 1 2 2 1 Largest Inventory Capacity 25 | 8 20 20 20 25 25 25 25 25 25 25 25 Average Capacity 22 | 7 16 20 20 24 25 25 25 25 25 25 25 Most Carried 25 | 3 16 20 20 25 25 25 25 25 25 25 25 Average Carried 21 | . 11 18 19 24 24 24 25 23 23 24 24 Final Capacity 25 | 8 20 20 20 25 25 25 25 25 25 25 25 Final Carried 25 | 3 16 14 20 25 25 25 25 23 24 25 22 Class Distribution -------------------- 73% | Scavenger-Gunner 19% | Mutant 3% | Gunner Dominant Class ---------------- Mutant | -10/Materials Mutant | -10/Mines Scavenger-Gunner | -9/Materials Scavenger-Gunner | -8/Materials Scavenger-Gunner | -7/Factory Scavenger-Gunner | -7/Lower Caves Scavenger-Mutant | -7/Data Miner Scavenger-Gunner | -6/Proximity Caves Scavenger-Gunner | -6/Factory Scavenger-Gunner | -6/Extension Commander-Gunner | -6/Cetus Resources | -11 -10 -10 -9 -8 -7 -7 -7 -6 -6 -6 -6 ----------- Run | Yrd Mat Min Mat Mat Fac Low Dat Pro Fac Ext Cet Matter Collected 5922 | 209 481 195 995 1191 302 266 . 259 876 1045 103 Remotely 311 | . . . . . . . . . 311 . . Salvage Created 8062 | 75 767 106 1763 2052 444 219 . 330 1481 744 81 Parts 438 | 2 48 7 114 117 23 8 . 8 74 31 6 Haulers Intercepted 12 | . 1 . 5 6 . . . . . . . Recyclers Shooed 12 | . 5 . . . 1 . . . 5 1 . Parts Field Recycled . | . . . . . . . . . . . . Retrieved Matter . | . . . . . . . . . . . . Parts Self-Destructed 18 | . . . . . . 10 . 8 . . . Prevented . | . . . . . . . . . . . . Parts Restored . | . . . . . . . . . . . . Kills | -11 -10 -10 -9 -8 -7 -7 -7 -6 -6 -6 -6 ------- Run | Yrd Mat Min Mat Mat Fac Low Dat Pro Fac Ext Cet Combat Hostiles Destroyed 137 | . 15 5 30 29 7 7 . 11 23 9 1 Guns 121 | . 14 . 29 29 7 7 . 8 19 7 1 Cannons 9 | . . 5 1 . . . . . 1 2 . AOE 5 | . . . . . . . . 3 2 . . Classes Destroyed 20 | 1 5 1 4 . 2 1 . 3 1 2 . Worker 15 | . 2 . 5 2 . . . . 6 . . Builder 4 | . . . 2 1 . . . . 1 . . Tunneler 1 | . . . . . . . . . . 1 . Hauler 12 | . 1 . 5 6 . . . . . . . Recycler 13 | 1 1 . 1 4 2 . . . 3 1 . Minesweeper 1 | . . . . . . 1 . . . . . Mechanic 1 | . . . 1 . . . . . . . . Operator 6 | . . . 2 3 1 . . . . . . Drone 2 | . . . . . . . . 2 . . . Watcher 18 | . 3 . 5 4 . . . . 3 2 1 Swarmer 27 | . 3 . 9 3 . 3 . 5 4 . . Grunt 57 | . 12 3 11 19 2 2 . 1 3 4 . Brawler 1 | . . . . . . . . 1 . . . Duelist 1 | . . . . . . . . 1 . . . Sentry 27 | . . . 10 7 2 . . 1 4 3 . Demolisher 2 | . . 2 . . . . . . . . . Specialist 2 | . . . . . . . . . 2 . . Hunter 8 | . . . . . 1 1 . . 6 . . Programmer 7 | . . . . . 2 1 . . 4 . . Behemoth 1 | . . . . . . . . . . 1 . Cetus Guard 1 | . . . . . . . . . . . 1 Thug 1 | . . . . . . . . . . 1 . Best Kill Streak 8 | 1 8 2 5 5 4 4 . 5 7 3 2 Combat Bots Only 5 | . 3 2 4 3 4 4 . 5 5 3 1 Max Kills in Single Turn 3 | 1 1 1 2 2 1 1 . 2 3 2 1 Gunslinging 1 | . . . 1 . . . . 1 . . . Exploded 2 | . . . . . . . . 2 1 . . Melee . | . . . . . . . . . . . . Uniques/NPCs Destroyed . | . . . . . . . . . . . . Combat | -11 -10 -10 -9 -8 -7 -7 -7 -6 -6 -6 -6 -------- Run | Yrd Mat Min Mat Mat Fac Low Dat Pro Fac Ext Cet Hostile Shots Fired 874 | . 99 32 117 77 72 38 . 43 295 78 23 Missed 243 | . 26 10 41 16 30 10 . 17 67 23 3 Hits 631 | . 73 22 76 61 42 28 . 26 228 55 20 Projectile 631 | . 73 22 76 61 42 28 . 26 228 55 20 AOE 12 | . . 12 . . . . . . . . . Critical Strikes 28 | . 2 . 4 2 . . . . 10 5 5 Part Disruptions 2 | . . . . . 1 . . . 1 . . Damage Taken 9490 | . 972 619 878 882 338 433 . 304 3472 703 889 Core 1504 | . 119 115 136 79 34 48 . 24 445 170 334 Absorbed by Shields 185 | . . . . . . . . . . 135 50 Ignored by Resistances 150 | . . . . . 43 . . . 91 16 . Regen/Repaired (Parts) 343 | . 198 . . . . . . . 145 . . Core Remaining (%) 68 | 100 . 6 66 85 . . . 84 . . . Volleys Fired 461 | 8 92 21 95 84 18 13 . 14 78 32 6 Largest 4 | 2 2 2 4 4 4 4 . 4 4 4 4 Hottest 241 | 70 70 100 159 144 164 164 . 199 232 241 209 Shots Fired 1468 | 16 184 41 373 335 71 52 . 43 216 113 24 Gun 1392 | 16 184 20 368 335 71 52 . 39 191 92 24 Cannon 70 | . . 20 5 . . . . 2 22 21 . Launcher 5 | . . . . . . . . 2 3 . . Special 1 | . . 1 . . . . . . . . . Kinetic 933 | 8 108 40 230 252 54 39 . 28 97 64 13 Thermal 530 | 8 76 1 143 83 17 13 . 13 116 49 11 Explosive 5 | . . . . . . . . 2 3 . . Electromagnetic . | . . . . . . . . . . . . Robot Hit Streak 30 | 4 12 14 30 18 22 8 . 9 25 15 6 Robot Miss Streak 8 | 3 3 4 4 3 3 5 . 6 8 4 2 Penetration Max 1 | . . . . . . 1 . . 1 1 1 Secondary Targets 17 | . . . 5 1 . 2 . 4 4 1 . Max Gunslinging Chain 2 | . . . 1 1 . 1 . 2 1 1 . Shots Hit Robots 951 | 8 124 27 230 204 54 40 . 24 142 81 17 Core Hits 502 | 2 41 12 81 88 38 32 . 28 115 53 12 Critical Kills 7 | . 1 . 1 2 1 1 . . . 1 . Critical Parts Destroyed 8 | . . . 1 3 . . . . 2 1 1 Critical Strikes 45 | . 5 1 9 10 2 1 . 1 13 2 1 Burn 29 | . 4 . 7 5 1 . . 1 11 . . Destroy 15 | . 1 . 2 5 1 1 . . 2 2 1 Blast 1 | . . 1 . . . . . . . . . Melee Attacks . | . . . . . . . . . . . . Impact . | . . . . . . . . . . . . Slashing . | . . . . . . . . . . . . Piercing . | . . . . . . . . . . . . Sneak Attacks . | . . . . . . . . . . . . Combat Hostiles . | . . . . . . . . . . . . Follow-up Attacks . | . . . . . . . . . . . . Damage Inflicted 17413 | 94 1357 369 3252 3769 1077 818 . 585 3495 2054 543 Guns 15602 | 94 1347 100 3174 3709 1059 818 . 359 2829 1570 543 Cannons 924 | . . 264 73 . . . . . 103 484 . Explosions 783 | . . . . . . . . 226 557 . . Melee . | . . . . . . . . . . . . Ramming 104 | . 10 5 5 60 18 . . . 6 . . Kinetic 9561 | 18 657 364 1864 2533 765 566 . 270 1187 1027 310 Thermal 6965 | 76 690 . 1383 1176 294 252 . 89 1745 1027 233 Explosive 783 | . . . . . . . . 226 557 . . Electromagnetic . | . . . . . . . . . . . . Impact . | . . . . . . . . . . . . Slashing . | . . . . . . . . . . . . Piercing . | . . . . . . . . . . . . Highest Corruption 16 | . . . . . 1 2 2 2 6 16 16 Average Corruption 5 | . . . . . 1 1 2 2 5 13 16 Corruption Purged . | . . . . . . . . . . . . Corruption Blocked . | . . . . . . . . . . . . Effects 126 | . . . . . 5 16 4 24 12 63 2 Message Errors 35 | . . . . . 1 2 3 7 2 19 1 Matter Fused 26 | . . . . . 2 5 . 3 5 11 . Heat Flow Errors 15 | . . . . . . 4 . 3 . 7 1 Energy Discharges 15 | . . . . . 1 3 1 4 1 5 . Parts Rejected 1 | . . . . . . . . . . 1 . Parts Fused 2 | . . . . . . . . . 2 . . Data Loss (minor) 18 | . . . . . 1 1 . 5 . 11 . Data Loss (major) 3 | . . . . . . . . 1 1 1 . Misfires 3 | . . . . . . . . . 1 2 . Alerts 6 | . . . . . . 1 . 1 . 4 . Weapon Failures 2 | . . . . . . . . . . 2 . Overload Shots . | . . . . . . . . . . . . Overflow Damage 32 | . . . . . . . . . 32 . . Projectiles . | . . . . . . . . . . . . Explosions 32 | . . . . . . . . . 32 . . Melee . | . . . . . . . . . . . . Knockbacks 7 | . . 5 . . . . . . . 2 . Impact . | . . . . . . . . . . . . Kinetic 6 | . . 4 . . . . . . . 2 . Secondary 1 | . . 1 . . . . . . . . . Self-Inflicted Damage . | . . . . . . . . . . . . Shots . | . . . . . . . . . . . . Rammed 8 | . 1 2 . 3 1 . . . 1 . . Targets Rammed 10 | . 1 2 1 4 1 . . . 1 . . Kicked . | . . . . . . . . . . . . Crushed 2 | . . . 1 1 . . . . . . . Highest Temperature 914 | 90 162 35 202 395 272 234 . 156 598 836 914 Average Temperature 107 | 33 48 12 28 74 83 58 . 67 171 193 485 Received Heat Transfer 1913 | . 483 96 294 441 42 45 . 27 225 198 62 Effects 50 | . . . . . . . . . 23 19 8 Shutdowns 11 | . . . . . . . . . 7 3 1 Energy Bleed 7 | . . . . . . . . . 3 3 1 Interference 5 | . . . . . . . . . 4 1 . Matter Decay 7 | . . . . . . . . . 3 4 . Short Circuit 5 | . . . . . . . . . 1 3 1 Damage (minor) 8 | . . . . . . . . . 4 3 1 Damage (major) 3 | . . . . . . . . . . 1 2 Damage (core) 4 | . . . . . . . . . 1 1 2 Siege Activations . | . . . . . . . . . . . . Martial Activations . | . . . . . . . . . . . . Shielding Activations . | . . . . . . . . . . . . Robots Disrupted . | . . . . . . . . . . . . Combat Hostiles . | . . . . . . . . . . . . Robots Corrupted . | . . . . . . . . . . . . Combat Hostiles . | . . . . . . . . . . . . Parts Fried 2 | . . . . . . . . . . 2 . Impact Corruptions . | . . . . . . . . . . . . Robots Melted 2 | . 1 . . . . . . . 1 . . Combat Hostiles 2 | . 1 . . . . . . . 1 . . Parts Melted 21 | . 2 . 4 2 . 2 . . 11 . . Heat Transferred 17924 | 222 2035 . 3980 2849 692 575 . 337 4760 1995 479 Parts Sabotaged . | . . . . . . . . . . . . Parts Stolen . | . . . . . . . . . . . . Parts Stripped . | . . . . . . . . . . . . Power Chain Reactions . | . . . . . . . . . . . . Alert | -11 -10 -10 -9 -8 -7 -7 -7 -6 -6 -6 -6 ------- Run | Yrd Mat Min Mat Mat Fac Low Dat Pro Fac Ext Cet Maximum Alert Level 2 | . . . 2 1 . . . . 2 . . Low Security (%) 73 | 100 100 100 43 65 100 . . . 49 100 100 Level 1 22 | . . . 51 34 . . . . 30 . . Level 2 3 | . . . 5 . . . . . 20 . . Level 3 . | . . . . . . . . . . . . Level 4 . | . . . . . . . . . . . . Level 5 . | . . . . . . . . . . . . High Security . | . . . . . . . . . . . . Max Security . | . . . . . . . . . . . . Peak Influence 600 | 5 135 92 412 388 170 . . . 600 188 88 Initial 600 | . . 13 5 172 170 . . . 600 78 88 Average 132 | . 27 15 201 169 82 . . . 247 74 49 Influence Increases 5473 | 5 445 216 1006 951 239 175 . 200 1322 793 121 Destroy 0b10 Robot/C 3080 | . 300 160 600 580 140 140 . 180 460 440 80 Destroy 0b10 Robot/NC 370 | 5 35 . 105 100 15 5 . 10 65 25 5 Destroy Leader 750 | . 68 40 200 150 50 30 . 10 146 56 . Allied During Kill 305 | . . 16 . . . . . . . 253 36 Successful Hack 88 | . 10 . 28 2 33 . . . 15 . . Disable Machine 75 | . . . 45 30 . . . . . . . Destroy Structure 70 | . 2 . 13 14 1 . . . 21 19 . Advance Influence 600 | . . . . . . . . . 600 . . Lose Combat Pursuer 135 | . 30 . 15 75 . . . . 15 . . Influence Decreases 5412 | 5 410 237 610 985 615 175 . 200 1162 795 218 Entered New Map 627 | . . 22 9 238 206 . . . . 82 70 Time Decay 3642 | 5 400 168 591 663 409 175 . 170 562 479 20 Search Patrol Dispatched 100 | . . . . . . . . . 100 . . Lost Part 347 | . 10 47 10 . . . . 30 200 20 30 Lost Ally 192 | . . . . . . . . . . 94 98 Purge Threat 504 | . . . . 84 . . . . 300 120 . Squads Dispatched 18 | . 3 . 2 2 3 . . . 7 1 . Investigation 1 | . 1 . . . . . . . . . . Extermination 5 | . . . . . 2 . . . 3 . . Reinforcement 12 | . 2 . 2 2 1 . . . 4 1 . Assault . | . . . . . . . . . . . . Garrison . | . . . . . . . . . . . . Intercept . | . . . . . . . . . . . . Searches Triggered 1 | . . . . . . . . . 1 . . Construction Impeded 3 | . . . . . . . . . 2 1 . Haulers Reinforced . | . . . . . . . . . . . . Active Scanning Responses . | . . . . . . . . . . . . Cargo Convoy Interrupts . | . . . . . . . . . . . . Stealth | -11 -10 -10 -9 -8 -7 -7 -7 -6 -6 -6 -6 --------- Run | Yrd Mat Min Mat Mat Fac Low Dat Pro Fac Ext Cet Distress Signals 16 | . 1 . 4 6 . . . 1 1 2 1 Communications Jammed . | . . . . . . . . . . . . Distress Signals . | . . . . . . . . . . . . Times Spotted 224 | . 33 14 44 49 8 8 . 13 27 23 5 Peak Tracking Total 5 | . 4 4 4 4 3 5 . 5 5 3 5 Tactical Retreats 7 | . 2 . 1 3 . . . . 1 . . Traps | -11 -10 -10 -9 -8 -7 -7 -7 -6 -6 -6 -6 ------- Run | Yrd Mat Min Mat Mat Fac Low Dat Pro Fac Ext Cet Traps Triggered 7 | . 2 . . . . . . . 3 2 . Indirectly . | . . . . . . . . . . . . Trap Hack Attempts . | . . . . . . . . . . . . Triggered . | . . . . . . . . . . . . Disarmed . | . . . . . . . . . . . . Reprogrammed . | . . . . . . . . . . . . Reused . | . . . . . . . . . . . . Traps Extracted . | . . . . . . . . . . . . Installed . | . . . . . . . . . . . . Triggered . | . . . . . . . . . . . . Machines | -11 -10 -10 -9 -8 -7 -7 -7 -6 -6 -6 -6 ---------- Run | Yrd Mat Min Mat Mat Fac Low Dat Pro Fac Ext Cet Machines Disabled 6 | . . . 4 2 . . . . . . . Max in Single Turn 1 | . . . 1 1 . . . . . . . Machines Repaired . | . . . . . . . . . . . . Machines Dismantled . | . . . . . . . . . . . . Machines Sabotaged . | . . . . . . . . . . . . Overloaded Fab Kills . | . . . . . . . . . . . . Hacking | -11 -10 -10 -9 -8 -7 -7 -7 -6 -6 -6 -6 --------- Run | Yrd Mat Min Mat Mat Fac Low Dat Pro Fac Ext Cet Machines Accessed 38 | . 4 . 8 6 6 1 4 . 5 4 . Terminals 24 | . 3 . 5 4 5 . . . 3 4 . Fabricators 1 | . . . . . . . . . 1 . . Repair Stations 4 | . 1 . 2 . . . . . 1 . . Recycling Units . | . . . . . . . . . . . . Scanalyzers 2 | . . . 1 1 . . . . . . . Garrison Access 2 | . . . . 1 1 . . . . . . Total Hacks 105 | . 9 . 21 14 9 1 28 . 15 8 . Successful 59 | . 5 . 8 3 4 1 28 . 8 2 . Failed 45 | . 4 . 13 10 5 . . . 7 6 . Catastrophic 9 | . 1 . 2 2 2 . . . 1 1 . Database Lockouts 1 | . . . . 1 . . . . . . . Manual 23 | . 1 . 13 4 . . . . . 5 . Terminals 56 | . 4 . 16 9 8 . . . 11 8 . Fabricators 1 | . . . . . . . . . 1 . . Repair Stations 11 | . 5 . 3 . . . . . 3 . . Recycling Units . | . . . . . . . . . . . . Scanalyzers 5 | . . . 2 3 . . . . . . . Garrison Access 3 | . . . . 2 1 . . . . . . Terminal Hacks 48 | . 1 . 5 2 4 1 28 . 5 2 . Record 11 | . . . . . . . 11 . . . . Part Schematic 14 | . . . 3 . . . 11 . . . . Robot Schematic 3 | . . . . . . . 3 . . . . Robot Analysis 1 | . . . . . 1 . . . . . . Prototype ID Bank 3 | . . . . . . . 3 . . . . Open Door 2 | . . . . . . 1 . . 1 . . Branch Access Points 3 | . 1 . . . 1 . . . 1 . . Alert Level 1 | . . . . 1 . . . . . . . Unreport Threat 4 | . . . . 1 . . . . 2 1 . Dispatch Records 1 | . . . . . 1 . . . . . . Recall Reinforcements 1 | . . . . . . . . . 1 . . Hauler Manifests 1 | . . . 1 . . . . . . . . Registered Components 1 | . . . 1 . . . . . . . . Zone Layout 2 | . . . . . 1 . . . . 1 . Fabricator Hacks 1 | . . . . . . . . . 1 . . Network Status 1 | . . . . . . . . . 1 . . Repair Station Hacks 7 | . 4 . 1 . . . . . 2 . . Scan Component 4 | . 2 . 1 . . . . . 1 . . Repair 3 | . 2 . . . . . . . 1 . . Recycling Unit Hacks . | . . . . . . . . . . . . Scanalyzer 3 | . . . 2 1 . . . . . . . Retrieve Study 3 | . . . 2 1 . . . . . . . Garrison Access Hacks . | . . . . . . . . . . . . Unauthorized Hacks . | . . . . . . . . . . . . Terminals . | . . . . . . . . . . . . Fabricators . | . . . . . . . . . . . . Repair Stations . | . . . . . . . . . . . . Recycling Units . | . . . . . . . . . . . . Scanalyzers . | . . . . . . . . . . . . Garrison Access . | . . . . . . . . . . . . Data Cores Recovered 3 | . . . . 2 1 . . . . . . Used . | . . . . . . . . . . . . Hacking Detections 25 | . 2 . 8 4 3 . . . 4 4 . Full Trace Events . | . . . . . . . . . . . . Feedback Events . | . . . . . . . . . . . . Feedback Blocked . | . . . . . . . . . . . . Robot Schematics Acquired 3 | . . . . . . . 3 . . . . Robots Built . | . . . . . . . . . . . . Authchips . | . . . . . . . . . . . . Time . | . . . . . . . . . . . . Total Robot Build Rating . | . . . . . . . . . . . . Part Schematics Acquired 13 | . . . 2 . . . 11 . . . . Parts Built . | . . . . . . . . . . . . Authchips . | . . . . . . . . . . . . Time . | . . . . . . . . . . . . Total Part Build Rating . | . . . . . . . . . . . . Part Studies Acquired 3 | . . . 2 1 . . . . . . . Parts Repaired 3 | . 2 . . . . . . . 1 . . Time 102 | . 52 . . . . . . . 50 . . Parts Recycled . | . . . . . . . . . . . . Recycled Matter . | . . . . . . . . . . . . Retrieved Matter . | . . . . . . . . . . . . Retrieved Components . | . . . . . . . . . . . . Parts Scanalyzed . | . . . . . . . . . . . . Part Schematics Acquired . | . . . . . . . . . . . . Parts Damaged . | . . . . . . . . . . . . Bothacking | -11 -10 -10 -9 -8 -7 -7 -7 -6 -6 -6 -6 ------------ Run | Yrd Mat Min Mat Mat Fac Low Dat Pro Fac Ext Cet Used RIF Installer . | . . . . . . . . . . . . Robots Hacked . | . . . . . . . . . . . . Non-combat . | . . . . . . . . . . . . Combat . | . . . . . . . . . . . . Robot Hacks Applied . | . . . . . . . . . . . . Relay Couplers Released 4 | . . . . . . . . . 4 . . Programmers 4 | . . . . . . . . . 4 . . Fabnet Peak Effective % . | . . . . . . . . . . . . Robots Rewired 15 | . . . . . . . . . . 15 . Allies Hacked . | . . . . . . . . . . . . Hacks Repelled . | . . . . . . . . . . . . Allies | -11 -10 -10 -9 -8 -7 -7 -7 -6 -6 -6 -6 -------- Run | Yrd Mat Min Mat Mat Fac Low Dat Pro Fac Ext Cet Total Allies 26 | . . 3 . . . . . . . 23 . Largest Group 16 | . . 3 . . . . . . . 16 16 Highest-Rated Group 610 | . . 40 . . . . . . . 610 610 Highest-Rated Ally 159 | . . 16 . . . . . . . 159 152 Total Orders . | . . . . . . . . . . . . Ally Attacks 162 | . . 12 . . . . . . . 111 39 Total Damage 2920 | . . 92 . . . . . . . 2149 679 Kills 20 | . . 3 . . . . . . . 14 3 Allies Corrupted 1 | . . . . . . . . . . 1 . Allies Melted . | . . . . . . . . . . . . Intel | -11 -10 -10 -9 -8 -7 -7 -7 -6 -6 -6 -6 ------- Run | Yrd Mat Min Mat Mat Fac Low Dat Pro Fac Ext Cet Active Infowar (turns) 5630 | . 1768 836 . . . 1451 216 1357 2 . . Optics 2604 | . 1768 836 . . . . . . . . . Sensors 884 | . . . . . . . . 882 2 . . Terrain 2142 | . . . . . . 1451 216 475 . . . Robot Analysis Total 1 | . . . . . 1 . . . . . . Derelict Logs Recovered 1 | . . . . . . . . 1 . . . Drone Launches . | . . . . . . . . . . . . Drone Recoveries . | . . . . . . . . . . . . Exploration | -11 -10 -10 -9 -8 -7 -7 -7 -6 -6 -6 -6 ------------- Run | Yrd Mat Min Mat Mat Fac Low Dat Pro Fac Ext Cet Turns Passed 17222 | 175 2372 879 3419 2856 1034 1464 216 1357 1679 1704 67 Spaces Moved 6694 | 92 938 327 1205 1039 420 669 97 608 669 610 20 Core 5 | 5 . . . . . . . . . . . Treads 6078 | 87 938 314 1059 1039 420 669 97 608 387 440 20 Legs . | . . . . . . . . . . . . Wheels 611 | . . 13 146 . . . . . 282 170 . Hover . | . . . . . . . . . . . . Flight . | . . . . . . . . . . . . Fastest Speed 50 | 50 160 145 145 208 206 206 216 210 128 145 218 Average Speed 212 | 154 209 236 228 222 206 207 216 211 177 210 218 Slowest Speed 320 | 160 240 240 320 240 206 216 216 216 285 230 218 Overloaded Moves . | . . . . . . . . . . . . Propulsion Burnouts . | . . . . . . . . . . . . Robots Hopped . | . . . . . . . . . . . . Potential Cave-ins . | . . . . . . . . . . . . Cave-ins Triggered . | . . . . . . . . . . . . Exploration Rate (%) 55 | 3 96 59 96 78 15 74 70 72 21 74 10 Regions Visited 11 Branch Regions 6 Pre-discovered Areas 1 | . . . . . . . 1 . . . . Known Exits Taken 3 | . 1 . . . 1 . . . 1 . . Unknown Exits Taken 8 | 1 . 1 1 1 . 1 1 1 . 1 . Scrap Searched 8 | . . 2 . . . 2 . 4 . . . Spaces Dug 15 | . . . . . . . . 2 13 . . Terrain Destroyed 57 | . . . . . 1 . . 26 27 3 . Melee . | . . . . . . . . . . . . Projectile 23 | . . . . . 1 . . 4 15 3 . AOE 34 | . . . . . . . . 22 12 . . Terrain Rammed . | . . . . . . . . . . . . Walls Destroyed . | . . . . . . . . . . . . Machines Disabled . | . . . . . . . . . . . . Actions | -11 -10 -10 -9 -8 -7 -7 -7 -6 -6 -6 -6 --------- Run | Yrd Mat Min Mat Mat Fac Low Dat Pro Fac Ext Cet Total 8789 | 108 1177 392 1667 1435 560 713 104 647 992 965 29 Wait 1047 | . 112 20 270 237 98 20 . 18 165 107 . Move 6683 | 91 937 326 1204 1038 419 668 96 607 668 609 20 Hop . | . . . . . . . . . . . . Pick Up 100 | 3 15 9 22 16 6 3 . 1 15 10 . Fast Attach 42 | 6 3 . 4 5 . . 4 . 10 10 . Attach 36 | . 1 7 2 3 2 . . 3 15 . 3 Detach 3 | . . . 1 . . . . . . 2 . Swap 108 | . 8 4 28 18 6 4 . 4 20 16 . Drop 140 | . 8 3 40 30 10 5 4 . 12 28 . Fire 461 | 8 92 21 95 84 18 13 . 14 78 32 6 Melee . | . . . . . . . . . . . . Ram . | . . . . . . . . . . . . Kick . | . . . . . . . . . . . . Crush 10 | . 1 2 1 4 1 . . . 1 . . Escape Stasis 10 | . . . . . . . . . 8 2 . Rewire 149 | . . . . . . . . . . 149 . Trap . | . . . . . . . . . . . . Miscellaneous . | . . . . . . . . . . . . Route ------- -11/Scrapyard -10/Materials (discovered 4 exits: *Mat x2 / *Min x2) -10/Mines -9/Materials (discovered 6 exits: *Mat x3 / [*Min x2] / [*Sto]) -8/Materials (discovered 2 exits: *Fac x2) -7/Factory (discovered 3 exits: *Fac / *Low x2) -7/Lower Caves (discovered 2 exits: [*Low] / *Dat) -7/Data Miner -6/Proximity Caves -6/Factory (discovered 7 exits: *Fac x3 / Low x2 / *Ext x2) -6/Extension (discovered 2 exits: *Fac / [*Cet]) -6/Cetus History --------- Turn | Location | Event 31 | -11/Scrapyard | Discovered new exit (range 15) 176 | -11/Scrapyard | Entered Materials 304 | -10/Materials | Build established: Mutant 933 | -10/Materials | Repaired Lgt. Treads 961 | -10/Materials | Repaired Lgt. Treads 1070 | -10/Materials | Discovered new exit (range 12) 1297 | -10/Materials | Discovered new exit (range 7) 1703 | -10/Materials | Identified exit to Mines 2140 | -10/Materials | Discovered new exit (range 17) 2548 | -10/Materials | Entered Mines 2557 | -10/Mines | Met a Derelict bent on vengeance 2599 | -10/Mines | Lost 3 parts (2n1w) 2782 | -10/Mines | Received a Rocket Launcher from a helpful Derelict 2879 | -10/Mines | Assisted by bots powering up and referring to "LRC-V3" 2996 | -10/Mines | Core integrity fell below 50% 3054 | -10/Mines | Discovered new exit (range 11) 3373 | -10/Mines | Assembled infested the area 3398 | -10/Mines | Core integrity fell below 20% 3416 | -10/Mines | Lost 3 allies 3426 | -10/Mines | Lost 4 parts (1p2n1u) 3427 | -10/Mines | Entered Materials 3427 | -9/Materials | Evolved 2 slots: Weapon x2 3709 | -9/Materials | Build established: Scavenger-Gunner 3823 | -9/Materials | Discovered new exit (range 3) 4097 | -9/Materials | Discovered new exit (range 16) 5257 | -9/Materials | Discovered new exit (range 16) 5763 | -9/Materials | Discovered new exit (range 10) 6495 | -9/Materials | Discovered new exit (range 9) 6567 | -9/Materials | Discovered new exit (range 5) 6846 | -9/Materials | Entered another Materials area 6846 | -8/Materials | Evolved 2 slots: Propulsion x1, Utility x1 8431 | -8/Materials | Central database locked down 8481 | -8/Materials | Discovered new exit (range 16) 8917 | -8/Materials | Discovered new exit (range 5) 9363 | -8/Materials | Build established: Gunner 9702 | -8/Materials | Entered Factory 9702 | -7/Factory | Evolved 2 slots: Propulsion x1, Utility x1 9877 | -7/Factory | Identified exit to Lower Caves 10002 | -7/Factory | Build established: Scavenger-Gunner 10584 | -7/Factory | Discovered new exit (range 11) 10736 | -7/Factory | Entered Lower Caves 11144 | -7/Lower Caves | Encountered a Warlord checkpoint 11152 | -7/Lower Caves | A Derelict revealed a hidden shortcut to meet someone special 11852 | -7/Lower Caves | Discovered new exit (range 11) 12200 | -7/Lower Caves | Entered Data Miner 12203 | -7/Data Miner | Discovered new exit (range 6) 12244 | -7/Data Miner | Met Data Miner 12293 | -7/Data Miner | Learned location of Section 7 (-2) 12293 | -7/Data Miner | Acquired the access code to Warlord's prototype stash 12330 | -7/Data Miner | Received God Mode back door access code from Data Miner 12416 | -7/Data Miner | Entered Proximity Caves 12656 | -6/Proximity Caves | Spotter reported a threat 12670 | -6/Proximity Caves | Spotter reported a threat 12762 | -6/Proximity Caves | Spotter reported a threat 12777 | -6/Proximity Caves | Spotter reported a threat 12818 | -6/Proximity Caves | Attracted the attention of an 0b10 checkpoint 13153 | -6/Proximity Caves | Discovered new exit (range 15) 13472 | -6/Proximity Caves | Learned 12 Factory zone layouts 13773 | -6/Proximity Caves | Entered Factory 13773 | -6/Factory | Evolved 2 slots: Propulsion x1, Utility x1 13774 | -6/Factory | Identified exit to Lower Caves 13774 | -6/Factory | Identified exit to Factory 14123 | -6/Factory | Search patrols dispatched 14295 | -6/Factory | Repaired Imp. Medium Treads 14440 | -6/Factory | Lost 11 parts (2p4n2u3w) 14624 | -6/Factory | Identified exit to Extension 15002 | -6/Factory | Discovered exit to Factory (range 9) 15132 | -6/Factory | Lost 5 parts (2n3w) 15308 | -6/Factory | Core integrity fell below 50% 15452 | -6/Factory | Entered Extension 15497 | -6/Extension | Rescued a captive Derelict 15730 | -6/Extension | Rescued A7 15786 | -6/Extension | System corruption reached 10% 16043 | -6/Extension | Rescued a captive Derelict 16147 | -6/Extension | Spotted B-75 Beast 16202 | -6/Extension | Destroyed B-75 Beast 16213 | -6/Extension | Spotted B-75 Beast 16242 | -6/Extension | Allies destroyed B-75 Beast 16272 | -6/Extension | Lost 3 allies 16447 | -6/Extension | Rescued a captive Derelict 16448 | -6/Extension | Rescued a captive Derelict 16571 | -6/Extension | Rescued a captive Derelict 16664 | -6/Extension | Rescued a captive Derelict 16741 | -6/Extension | Rescued a captive Derelict 17075 | -6/Extension | Discovered exit to Factory (range 10) 17078 | -6/Extension | Discovered new exit (range 6) 17156 | -6/Extension | Entered Cetus 17156 | -6/Cetus | Accompanied by 16 allies (A7) 17161 | -6/Cetus | Acquired a Cetus Manufacturing Module code from A7 17184 | -6/Cetus | Spotted Cetus Guard 17184 | -6/Cetus | Spotted Cetus Guard 17189 | -6/Cetus | Spotted Cetus Guard 17189 | -6/Cetus | Spotted Cetus Guard 17209 | -6/Cetus | Allies destroyed Cetus Guard 17217 | -6/Cetus | Allies destroyed Cetus Guard 17220 | -6/Cetus | Core integrity fell below 20% 17221 | -6/Cetus | Destroyed Cetus Guard 17222 | -6/Cetus | Allies destroyed Cetus Guard 17224 | -6/Cetus | Core melted Last Messages --------------- 17218_ Lgt. Treads+ broken. 17218_ Overheating: Short circuit. 17218_ Arm. Treads destroyed. 17218_ Penetrated by Slug. 17218_ Critical hit (Destroy). 17218_ Lgt. Treads+ destroyed. 17219_ Acquired 10 matter. 17219_ Gatling Laser destroyed. 17219_ Penetrated by Slug. 17220_ Overheating: Core damaged (-136). 17220_ Acquired 5 matter. 17221_ Overheating: Lgt. Treads+ damaged (-54). 17221_ Acquired 10 matter. 17221_ Penetrated by Slug. 17221_ Slug penetrates Wall. 17221_ Cetus Guard destroyed. 17222_ Acquired 12 matter. 17222_ Cetus Guard suffers critical hit (Destroy). 17222_ Cetus Guard destroyed. 17224_ Overheating: Core damaged (-170). Map ----- +----------------------------------------------------+ | ??????????????????????????????????????????? | | ??????????????????????????????????????????? | | ??????????????????????????????????????????? | | ??????????????????????????????????????????? | | ??????????????????????????????????????????? | | ??????????????????????????????????????????? | | ??????????????????????????????????????????? | | ??????????????????????????????????????????? | | ??????????????????????????????????????????? | | ??????????????????????????????????????????? | | ??????????????????????????????????????????? | | ??????????????????????????????????????????? | | ??????????????????????????????????????????? | | ??????????????????????????????????????????? | | ??????????????????????????????????????????? | | ??????????????????????????????????????????? | | ??????????????????????????????????????????? | | ??????????????????????????????????????????? | | ??????????????????????????????????????????? | | ??????????????????????????????????????????? | | ??????????????????????????????????????????? | | ??????????????????????????#???????????????? | | ????????????????######?? #???????????????? | | ?################=#%;#; [#####???????????? | | ?# ![!%!%bh=% !%[%% ????????? | | ?# ==[!%g@[!! !%%%! *%????????? | | ?# *=![!p%!=== *[!%! =????????? | | ?######################;########??????????? | | ??????????????????????????????????????????? | | ??????????????????????????????????????????? | | ??????????????????????????????????????????? | | ??????????????????????????????????????????? | | ??????????????????????????????????????????? | | ??????????????????????????????????????????? | | ??????????????????????????????????????????? | | ??????????????????????????????????????????? | | ??????????????????????????????????????????? | | ??????????????????????????????????????????? | | ??????????????????????????????????????????? | | ??????????????????????????????????????????? | | ??????????????????????????????????????????? | | ??????????????????????????????????????????? | | ??????????????????????????????????????????? | | ??????????????????????????????????????????? | | ??????????????????????????????????????????? | | ??????????????????????????????????????????? | | ??????????????????????????????????????????? | | ??????????????????????????????????????????? | | ??????????????????????????????????????????? | | ??????????????????????????????????????????? | +----------------------------------------------------+ Best States ------------- Heat Dissipation 51 Energy Generation 16 Energy Capacity 290 Matter Stores 300 Matter Capacity 300 Sight Range 18 Robot Scan Range 15 Terrain Scan Range 16 Terrain Scan Density 10 Armor Coverage 450 Resistance: KI 20 Evasion (%) 40 Targeting Accuracy 8 Target Analysis 5 Recoil Reduction 5 Item Schematics ----------------- Huge Storage Unit | -9/Materials | Hacked Plasma Cutter | -9/Materials | Hacked Combat Drone Bay | -7/Data Miner | Free Lgt. Regenerative Plating | -7/Data Miner | Free Cld. Aerolev Unit | -7/Data Miner | Free Exp. Targeting Computer | -7/Data Miner | Free Imp. Heavy Laser | -7/Data Miner | Free Antigrav System | -7/Data Miner | Free Adv. Cooling System | -7/Data Miner | Free Variable Charge Gun | -7/Data Miner | Free Enh. Optical Array | -7/Data Miner | Free Mic. Fission Core | -7/Data Miner | Free Graphene Brace | -7/Data Miner | Free Robot Schematics ------------------ L-41 Fighter | -7/Data Miner | Free E-15 Imp | -7/Data Miner | Free B-48 Gladiator | -7/Data Miner | Free Fabricated ------------ Nothing Repaired ---------- Lgt. Treads | 25% | -10/Materials Lgt. Treads | 33% | -10/Materials Imp. Medium Treads | 27% | -6/Factory Studied --------- Hvy. Assault Rifle | -9/Materials | Hacked Beam Rifle | -9/Materials | Hacked Lgt. Treads | -8/Materials | Hacked Alien Tech Used ----------------- None Achievements -------------- Botjacking Gun Specialist Look Less Dangerous Next Time Suspicious Challenges ------------ None Game ------ Seed GammaVoltaicArmor Manual? 0 Play Time 01:35:21 Cumulative 124.3 hours Start 2026.07.07 @ 01:08:37 End 2026.07.07 @ 19:00:49 Sessions 3 Manual Loads 0 Difficulty Rogue Special Mode None Game No. 83 Rogue 83 Adventurer 0 Explorer 0 Win Type - Total 4 Types 4/0/0/0/0/0/0/0/0/0 Lore% 32 Gallery% 40 Achievement% 29 Wizard Run 0 Options --------- Layout 0 ASCII 0 Keyboard 0 Movement Mouse Keybinds 0 Fullscreen 2 Font 18/SmallcapsGlow Map View 76x50 Zoom Use 0% Tactical HUD 1 Map Filters NONE Filters NONE Steam 1 RUN: 14af15d5-87fd-4d4b-ab24-7fd0a027dca2